fUST/lending_fUST_20240206
["ID","MTS","AMOUNT","RATE_DAILY","PERIOD"]
[313340682,1707175838784,-235.64287907,0.00024971,2]
[313340683,1707175838794,-580.32379879,0.00024971,2]
[313340684,1707175838803,-151.0,0.00024975,2]
[313340685,1707175838813,-202.75869274,0.00024999,2]
[313340686,1707175838825,-4735.97820111,0.00025,2]
[313340687,1707175838834,-7402.65909098,0.00025,2]
[313340688,1707175838844,-5930.2,0.00025,2]
[313340689,1707175838853,-3141.21618564,0.00025,2]
[313340690,1707175838864,-309.92404905,0.000252,2]
[313340691,1707175838873,-200.0,0.00025479,2]
[313340692,1707175838883,-5000.0,0.00025848,2]
[313340693,1707175838893,-153.0,0.00026027,2]
[313340694,1707175838902,-199.8298339,0.00026027,2]
[313340695,1707175838912,-199.8298339,0.00026027,2]
[313340696,1707175838921,-151.0,0.000261,2]
[313340697,1707175838930,-200.0,0.00026523,15]
[313340698,1707175838940,-348.0,0.00026523,15]
[313340699,1707175838950,-811.45273341,0.00026575,2]
[313340700,1707175838959,-8672.06333086,0.000266,4]
[313340701,1707175838968,-35944.95674329,0.000268,2]
[313340702,1707175838977,-227.2387062,0.00026849,2]
[313340703,1707175838986,-199.8298339,0.00026849,2]
[313340704,1707175838996,-194.6102217,0.00026849,2]
[313340705,1707175839005,-586.46184267,0.00026998,2]
[313340706,1707175839014,-1701.30850405,0.00026999,2]
[313340707,1707175839023,-1382.16421912,0.00027,2]
[313340708,1707175839032,-263.788035,0.0002704,2]
[313340709,1707175839041,-5000.0,0.0002711,2]
[313340710,1707175839050,-5000.0,0.0002711,2]
[313340711,1707175839059,-151.0,0.00027225,2]
[313340712,1707175839068,-500.0,0.00027397,2]
[313340713,1707175839077,-500.0,0.00027397,2]
[313340714,1707175839086,-500.0,0.00027397,2]
[313340715,1707175839095,-500.0,0.00027397,2]
[313340716,1707175839105,-1000.0,0.00027397,2]
[313340717,1707175839114,-500.0,0.00027397,2]
[313340718,1707175839123,-250.0,0.00027397,7]
[313340719,1707175839132,-500.0,0.00027397,2]
[313340720,1707175839141,-500.0,0.00027397,2]
[313340721,1707175839149,-500.0,0.00027397,2]
[313340722,1707175839158,-500.0,0.00027397,2]
[313340723,1707175839167,-500.0,0.00027397,2]
[313340724,1707175839177,-236.6,0.00027397,2]
[313340725,1707175839185,-300.80568333,0.00027397,2]
[313340726,1707175839195,-155.0,0.00027397,2]
[313340727,1707175839203,-500.0,0.00027397,2]
[313340728,1707175839213,-215.16301822,0.00027397,2]
[313340730,1707175839222,-500.0,0.00027397,2]
[313340732,1707175839231,-500.0,0.00027397,2]
[313340734,1707175839240,-500.0,0.00027397,2]
[313340736,1707175839249,-500.0,0.00027397,2]
[313340738,1707175839259,-500.0,0.00027397,2]
[313340740,1707175839268,-500.0,0.00027397,15]
[313340741,1707175839277,-500.0,0.00027397,2]
[313340743,1707175839286,-756.0,0.00027397,2]
[313340744,1707175839295,-500.0,0.00027397,2]
[313340746,1707175839304,-453.46449264,0.00027397,2]
[313340747,1707175839313,-500.0,0.00027397,2]
[313340749,1707175839322,-1744.5,0.00027397,2]
[313340750,1707175839331,-629.45,0.00027397,2]
[313340752,1707175839340,-2064.1,0.00027397,2]
[313340753,1707175839349,-500.0,0.00027397,2]
[313340754,1707175839358,-500.0,0.00027397,2]
[313340755,1707175839367,-421.254,0.00027397,2]
[313340756,1707175839376,-500.0,0.00027397,2]
[313340757,1707175839385,-500.0,0.00027397,2]
[313340758,1707175839394,-500.0,0.00027397,2]
[313340759,1707175839403,-2437.59,0.00027397,2]
[313340760,1707175839412,-1034.0,0.00027397,2]
[313340761,1707175839421,-500.0,0.00027397,2]
[313340762,1707175839430,-3041.2,0.00027397,2]
[313340763,1707175839439,-500.0,0.00027397,2]
[313340764,1707175839448,-500.0,0.00027397,2]
[313340765,1707175839457,-500.0,0.00027397,2]
[313340766,1707175839471,-2263.32,0.00027397,2]
[313340767,1707175839480,-500.0,0.00027397,2]
[313340768,1707175839489,-898.14,0.00027397,2]
[313340769,1707175839498,-1186.72,0.00027397,2]
[313340770,1707175839507,-500.0,0.00027534,7]
[313340771,1707175839517,-150.1,0.00027579,2]
[313340772,1707175839526,-1000.0,0.00027657,7]
[313340773,1707175839536,-368.49772843,0.00027664,2]
[313340774,1707175839638,-496.89911546,0.00027668,2]
[313340775,1707175839648,-242.09250968,0.00027668,2]
[313340776,1707175839658,-534.69538579,0.00027668,2]
[313340777,1707175839668,-179.97810264,0.00027669,2]
[313340778,1707175839677,-4035.82532671,0.00027669,2]
[313340779,1707175839687,-18910.07632617,0.0002767,2]
[313340780,1707175839697,-500.0,0.00027671,2]
[313340781,1707175839706,-377.05791211,0.00027671,2]
[313340782,1707175839715,-575.05751018,0.00027671,2]
[313340783,1707175839725,-1000.0,0.00027671,2]
[313340784,1707175839734,-750.0,0.00027671,7]
[313340785,1707175839744,-176.81,0.00027671,2]
[313340786,1707175839753,-599.65,0.00027671,2]
[313340787,1707175839763,-500.0,0.00027671,2]
[313340788,1707175839773,-500.0,0.00027671,2]
[313340789,1707175839782,-500.0,0.00027671,2]
[313340790,1707175839791,-500.0,0.00027671,2]
[313340791,1707175839799,-500.0,0.00027671,15]
[313340792,1707175839809,-756.0,0.00027671,2]
[313340793,1707175839818,-430.54,0.00027671,2]
[313340794,1707175839826,-1744.5,0.00027671,2]
[313340795,1707175839835,-629.45,0.00027671,2]
[313340796,1707175839845,-2064.1,0.00027671,2]
[313340797,1707175839856,-500.0,0.00027671,2]
[313340798,1707175839865,-500.0,0.00027671,2]
[313340799,1707175839874,-500.0,0.00027671,2]
[313340800,1707175839884,-500.0,0.00027671,2]
[313340801,1707175839893,-2437.59,0.00027671,2]
[313340802,1707175839901,-1034.0,0.00027671,2]
[313340803,1707175839911,-500.0,0.00027671,2]
[313340804,1707175839921,-3041.2,0.00027671,2]
[313340805,1707175839932,-500.0,0.00027671,2]
[313340806,1707175839942,-500.0,0.00027671,2]
[313340807,1707175839952,-2263.32,0.00027671,2]
[313340808,1707175839962,-500.0,0.00027671,2]
[313340809,1707175839972,-898.14,0.00027671,2]
[313340810,1707175839981,-1186.72,0.00027671,2]
[313340811,1707175839990,-1000.0,0.00027808,7]
[313340812,1707175840000,-9515.44510589,0.00027855,2]
[313340813,1707175840009,-1000.0,0.00027945,2]
[313340814,1707175840020,-1250.0,0.00027945,7]
[313340815,1707175840030,-500.0,0.00027945,2]
[313340816,1707175840040,-250.89513342,0.00027945,2]
[313340817,1707175840049,-500.0,0.00027945,2]
[313340818,1707175840057,-500.0,0.00027945,15]
[313340819,1707175840066,-756.0,0.00027945,2]
[313340820,1707175840076,-1744.5,0.00027945,2]
[313340821,1707175840085,-629.45,0.00027945,2]
[313340822,1707175840095,-2064.1,0.00027945,2]
[313340823,1707175840105,-500.0,0.00027945,2]
[313340824,1707175840115,-500.0,0.00027945,2]
[313340825,1707175840123,-500.0,0.00027945,2]
[313340826,1707175840135,-2437.59,0.00027945,2]
[313340827,1707175840145,-1034.0,0.00027945,2]
[313340828,1707175840154,-500.0,0.00027945,2]
[313340829,1707175840164,-3041.2,0.00027945,2]
[313340830,1707175840173,-500.0,0.00027945,2]
[313340831,1707175840182,-500.0,0.00027945,2]
[313340832,1707175840191,-2263.32,0.00027945,2]
[313340833,1707175840200,-898.14,0.00027945,2]
[313340834,1707175840210,-1186.72,0.00027945,2]
[313340835,1707175840221,-2104.05513607,0.00027998,2]
[313340836,1707175840231,-28656.20660674,0.00027999,2]
[313340837,1707175840241,-8065.7134368,0.00028,2]
[313340838,1707175840251,-155.24625614,0.00028,2]
[313340839,1707175840261,-459.46816636,0.00028,3]
[313340840,1707175840270,-201.39644924,0.00028,2]
[313340841,1707175840279,-11477.89964978,0.00028,20]
[313340842,1707175840351,-11706.28121219,0.00028,20]
[313340843,1707175840364,-1981.36617259,0.00028,20]
[313340844,1707175840379,-1984.01179553,0.00028,20]
[313340845,1707175840392,-7050.24,0.00028,20]
[313340846,1707175840403,-3871.77070578,0.00028,20]
[313340847,1707175840412,-968.82195981,0.00028,2]
[313340848,1707175840422,-457.41249623,0.00028,2]
[313340849,1707175840433,-155.04961588,0.00028,2]
[313340850,1707175840443,-155.04961588,0.00028,2]
[313340851,1707175840452,-3252.21461977,0.00028,2]
[313340852,1707175840464,-765.76707638,0.00028,2]
[313340853,1707175840476,-861.85604602,0.00028,4]
[313340854,1707175840485,-1607.02175698,0.00028,4]
[313340881,1707175840924,-403.5335302,0.00022989,3]
[313340883,1707175840935,-487.5164698,0.00022989,3]
[313340885,1707175840945,-779.04953872,0.00028,4]
[313340887,1707175840957,-2239.19681333,0.00028,4]
[313340889,1707175840967,-796.3838438,0.00028,4]
[313340891,1707175840977,-507.18,0.00028,2]
[313340893,1707175840986,-549.41331362,0.00028,2]
[313340895,1707175840995,-1010.0,0.00028,2]
[313340897,1707175841004,-13705.85329662,0.00028,7]
[313341120,1707175842974,-104177.66523948,0.00028,7]
[313341122,1707175842984,-5144.14934993,0.00028,3]
[313341124,1707175842993,-2926.24372674,0.00028,2]
[313341126,1707175843003,-153.3941962,0.00028056,2]
[313341128,1707175843012,-1500.0,0.00028082,7]
[313341130,1707175843021,-857.587388,0.00028098,2]
[313341132,1707175843030,-408.150471,0.00028098,2]
[313341134,1707175843039,-171.140725,0.00028098,2]
[313341136,1707175843048,-168.398982,0.00028098,2]
[313341138,1707175843057,-182.90301,0.00028098,2]
[313341140,1707175843066,-187.459184,0.00028098,2]
[313341141,1707175843075,-188.582568,0.00028098,2]
[313341143,1707175843084,-500.0,0.000281,2]
[313341146,1707175843093,-287.78860974,0.00028105,5]
[313341148,1707175843103,-513.422175,0.00028125,2]
[313341149,1707175843112,-329.225417,0.00028125,2]
[313341151,1707175843121,-171.140725,0.00028211,2]
[313341153,1707175843131,-182.90301,0.00028211,2]
[313341155,1707175843141,-1750.0,0.00028219,7]
[313341157,1707175843151,-199.19723946,0.00028219,2]
[313341160,1707175843163,-500.0,0.00028219,2]
[313341161,1707175843173,-500.0,0.00028219,15]
[313341163,1707175843183,-756.0,0.00028219,2]
[313341165,1707175843192,-1744.5,0.00028219,2]
[313341167,1707175843201,-629.45,0.00028219,2]
[313341170,1707175843210,-2064.1,0.00028219,2]
[313341171,1707175843221,-287.48,0.00028219,2]
[313341174,1707175843231,-500.0,0.00028219,2]
[313341176,1707175843240,-500.0,0.00028219,2]
[313341178,1707175843249,-2437.59,0.00028219,2]
[313341179,1707175843258,-1034.0,0.00028219,2]
[313341181,1707175843267,-500.0,0.00028219,2]
[313341183,1707175843276,-3041.2,0.00028219,2]
[313341185,1707175843285,-500.0,0.00028219,2]
[313341187,1707175843294,-500.0,0.00028219,2]
[313341189,1707175843303,-2263.32,0.00028219,2]
[313341191,1707175843313,-898.14,0.00028219,2]
[313341193,1707175843322,-1186.72,0.00028219,2]
[313341195,1707175843331,-182.765365,0.00028279,2]
[313341197,1707175843340,-256.679907,0.00028279,2]
[313341199,1707175843349,-199.867504,0.00028279,2]
[313341202,1707175843359,-171.001181,0.00028279,2]
[313341203,1707175843368,-160.17011173,0.0002828,2]
[313341205,1707175843377,-151.0,0.0002835,2]
[313341208,1707175843387,-2000.0,0.00028356,7]
[313341210,1707175843396,-857.587388,0.0002844,2]
[313341211,1707175843405,-408.150471,0.0002844,2]
[313341214,1707175843415,-171.140725,0.0002844,2]
[313341215,1707175843424,-513.422175,0.00028468,2]
[313341218,1707175843433,-329.225417,0.00028468,2]
[313341220,1707175843442,-2250.0,0.00028493,7]
[313341222,1707175843451,-500.0,0.00028493,2]
[313341223,1707175843462,-649.87,0.00028493,15]
[313341225,1707175843475,-756.0,0.00028493,2]
[313341227,1707175843484,-1744.5,0.00028493,2]
[313341229,1707175843493,-629.45,0.00028493,2]
[313341231,1707175843503,-2064.1,0.00028493,2]
[313341233,1707175843512,-500.0,0.00028493,2]
[313341236,1707175843521,-500.0,0.00028493,2]
[313341238,1707175843534,-2437.59,0.00028493,2]
[313341240,1707175843544,-1034.0,0.00028493,2]
[313341242,1707175843553,-500.0,0.00028493,2]
[313341244,1707175843562,-3041.2,0.00028493,2]
[313341246,1707175843572,-500.0,0.00028493,2]
[313341248,1707175843583,-500.0,0.00028493,2]
[313341250,1707175843592,-2263.32,0.00028493,2]
[313341252,1707175843601,-898.14,0.00028493,2]
[313341254,1707175843610,-1186.72,0.00028493,2]
[313341255,1707175843620,-171.140725,0.00028555,2]
[313341258,1707175843629,-256.679907,0.00028624,2]
[313341259,1707175843638,-199.867504,0.00028624,2]
[313341262,1707175843648,-171.001181,0.00028624,2]
[313341263,1707175843657,-2500.0,0.0002863,7]
[313341265,1707175843667,-1000.0,0.00028634,2]
[313341267,1707175843676,-811.45273341,0.00028635,2]
[313341269,1707175843685,-1000.0,0.00028644,2]
[313341271,1707175843694,-1000.0,0.00028644,2]
[313341273,1707175843703,-1000.0,0.00028647,2]
[313341275,1707175843713,-1000.0,0.00028649,2]
[313341277,1707175843723,-1000.0,0.00028665,2]
[313341279,1707175843732,-1000.0,0.00028668,2]
[313341281,1707175843741,-1000.0,0.00028674,2]
[313341283,1707175843751,-1000.0,0.00028675,2]
[313341285,1707175843760,-1000.0,0.00028687,2]
[313341287,1707175843770,-1000.0,0.000287,2]
[313341289,1707175843779,-188.32615088,0.00028712,2]
[313341292,1707175843788,-1000.0,0.00028717,2]
[313341293,1707175843797,-1000.0,0.00028718,2]
[313341296,1707175843807,-160.0,0.00028728,3]
[313341298,1707175843816,-1000.0,0.00028738,2]
[313341299,1707175843826,-1000.0,0.00028741,2]
[313341301,1707175843835,-372.77592719,0.00028758,2]
[313341303,1707175843845,-15000.14,0.00028767,2]
[313341306,1707175843855,-2476.69269401,0.00028767,2]
[313341308,1707175843870,-12523.44730599,0.00028767,2]
[313341310,1707175843879,-15000.14,0.00028767,2]
[313341312,1707175843889,-15000.14,0.00028767,2]
[313341314,1707175843898,-15000.14,0.00028767,2]
[313341316,1707175843907,-2763.73354248,0.00028767,2]
[313341318,1707175843919,-4215.05987283,0.00028767,2]
[313341929,1707177038485,-155.0418613,0.00021105,2]
[313341930,1707177038495,-1487.43821611,0.00021105,2]
[313341931,1707177038504,-263.7880358,0.00021106,2]
[313341932,1707177038513,-210.73374336,0.00021487,2]
[313341953,1707177041094,-1000.0,0.00021487,2]
[313341954,1707177041106,-13.26833671,0.00021487,2]
[313341955,1707177041115,-720.8403274,0.00021489,2]
[313341956,1707177041126,-166.666666,0.00021918,2]
[313341957,1707177041134,-2146.6452404,0.00022268,2]
[313341958,1707177041143,-523.15721576,0.00022318,2]
[313341959,1707177041153,-1997.51914833,0.00022318,2]
[313341960,1707177041162,-212.4169632,0.00022318,2]
[313341961,1707177041171,-328.54653112,0.00022318,2]
[313341962,1707177041180,-6075.55762947,0.00022319,2]
[313341963,1707177041192,-1294.56762125,0.00022319,2]
[313341964,1707177041204,-4219.27995585,0.00022319,2]
[313341965,1707177041227,-996.28439946,0.00022319,2]
[313341987,1707177042909,-1623.6353265,0.00022319,2]
[313341988,1707177042921,-898.39954919,0.00022319,2]
[313341989,1707177042933,-334.25102148,0.00022319,2]
[313341990,1707177042945,-5471.37676345,0.00022319,2]
[313341991,1707177042954,-2993.13546098,0.0002232,2]
[313341992,1707177042966,-2608.23224957,0.0002232,2]
[313342003,1707177257678,154.98450155,0.000176,2]
[313342047,1707178232009,-866.53595504,0.00020219,2]
[313342049,1707178232019,-12.07825801,0.0002022,2]
[313342307,1707178238226,-516.93649098,0.0002022,2]
[313342308,1707178238236,-11310.88269075,0.00021469,2]
[313342340,1707178241330,-1429.55506106,0.00021469,2]
[313342341,1707178241349,-3373.45963539,0.00021469,2]
[313342342,1707178241360,-3151.48,0.00021469,2]
[313342391,1707178244816,-270.1492761,0.00021469,2]
[313342394,1707178244829,-622.93575481,0.00021469,2]
[313342396,1707178244841,-4741.53758189,0.00021469,2]
[313342398,1707178244849,-167.797046,0.0002147,2]
[313342400,1707178244858,-1034.2333888,0.00021526,2]
[313342402,1707178244867,-2017.37973816,0.00021636,2]
[313342404,1707178244879,-982.62026184,0.00021636,2]
[313342406,1707178244889,-17.37973816,0.00021918,2]
[313342408,1707178244901,-149.28692784,0.00021918,2]
[313342410,1707178244910,-199.59356808,0.0002224,2]
[313342412,1707178244919,-295.21481537,0.0002224,2]
[313342414,1707178244931,-650.0,0.0002224,2]
[313342417,1707178244942,-1874.79530076,0.0002224,2]
[313342419,1707178244951,-950.04157406,0.0002232,2]
[313342428,1707178246089,-880.66714259,0.0002232,2]
[313342429,1707178246099,-166.666666,0.00022431,2]
[313342430,1707178246110,-104.62479535,0.0002293,2]
[313342431,1707178246125,-3388.10629953,0.0002293,2]
[313342432,1707178246134,-166.666666,0.00022944,2]
[313342433,1707178246143,-2628.10415848,0.00023,2]
[313342434,1707178246155,-2852.19065,0.00023,2]
[313342435,1707178246169,-4483.06348664,0.00023,2]
[313342436,1707178246178,-1262.55072275,0.00023,2]
[313342437,1707178246187,-310.02325175,0.00023283,2]
[313342438,1707178246196,-2873.8,0.0002339,3]
[313342439,1707178246207,-1485.69610159,0.00023398,2]
[313342440,1707178246216,-155.52495404,0.000234,2]
[313342441,1707178246225,-152.76559843,0.000234,2]
[313342507,1707179438432,-589.80224214,0.00020489,2]
[313342508,1707179438442,-596.94434083,0.0002049,2]
[313342598,1707179441563,-24303.05565917,0.0002049,2]
[313342599,1707179441574,-185.84543177,0.00020799,2]
[313342600,1707179441584,-352.67649933,0.000209,2]
[313342601,1707179441594,-2989.71376059,0.00020999,2]
[313342602,1707179441603,-257.882379,0.00021195,2]
[313342603,1707179441613,-166.666666,0.00021918,2]
[313342604,1707179441624,-166.666666,0.00022431,2]
[313342605,1707179441634,-166.666666,0.00022944,2]
[313342606,1707179441643,-3979.03719208,0.00022999,2]
[313342607,1707179441653,-9963.35829512,0.00023389,2]
[313342608,1707179441663,-2163.85,0.00023391,3]
[313342609,1707179441673,-34.49402202,0.000234,2]
[313342610,1707179441683,-293.58712786,0.000234,2]
[313342611,1707179441694,-248.22704821,0.000234,2]
[313342612,1707179441704,-4335.1853913,0.000234,2]
[313342642,1707179446392,-3113.89970445,0.000234,2]
[313342669,1707179811871,266.2818542,0.00027397,120]
[313342739,1707180632578,-1804.06033176,0.00019624,2]
[313342741,1707180632587,-639.37640005,0.00019625,2]
[313342743,1707180632599,-181.04106285,0.00019625,2]
[313342744,1707180632608,-1456.33138085,0.00019626,2]
[313342784,1707180638610,-304.17851595,0.00019626,2]
[313342786,1707180638620,-680.53747908,0.0002,2]
[313342788,1707180638629,-24900.0,0.00020229,2]
[313342790,1707180638639,-8600.2869634,0.00020865,2]
[313342792,1707180638649,-2415.23329715,0.00020924,2]
[313343050,1707180641810,-584.76670285,0.00020924,2]
[313343051,1707180641824,-281.182276,0.00020993,2]
[313343052,1707180641836,-1009.5958948,0.00021119,2]
[313343053,1707180641849,-235.11766622,0.000213,2]
[313343054,1707180641862,-166.666666,0.00021918,2]
[313343055,1707180641872,-427.05473099,0.00022,2]
[313343056,1707180641881,-200.0,0.00022251,7]
[313343057,1707180641890,-166.666666,0.00022431,2]
[313343058,1707180641900,-166.666666,0.00022944,2]
[313343059,1707180641910,-10122.84059076,0.000234,2]
[313343060,1707180641918,-160.12041175,0.000234,2]
[313343061,1707180641928,-155.2728553,0.000234,2]
[313343062,1707180641937,-259.57090895,0.000234,2]
[313343063,1707180641947,-275.94698994,0.000234,2]
[313343064,1707180641956,-16633.33239333,0.00023401,2]
[313343065,1707180641966,-1437.06959331,0.00023401,2]
[313343066,1707180641975,-202.7276822,0.00023401,2]
[313343067,1707180641984,-395.09966563,0.00023402,2]
[313343068,1707180641994,-277.17028051,0.00023402,2]
[313343069,1707180642003,-454.20792647,0.00023413,2]
[313343070,1707180642012,-408.70985633,0.00023413,2]
[313343071,1707180642021,-545.22062447,0.00023414,2]
[313343100,1707180646576,-655.74389532,0.00023414,2]
[313343102,1707180646586,-3152.90195468,0.00023415,2]
[313343104,1707180646598,-316.38759901,0.00023415,2]
[313343197,1707181831677,-820.4174629,0.000213,2]
[313343199,1707181831687,-31.93022677,0.00021301,2]
[313343204,1707181831730,-124.81488404,0.00021301,2]
[313343205,1707181831739,-296.60574027,0.00021818,2]
[313343312,1707181840909,-38.63477036,0.00021818,2]
[313343313,1707181840919,-303.47854417,0.0002187,2]
[313343314,1707181840930,-917.499925,0.0002187,2]
[313343331,1707181842778,-501.1855918,0.0002187,2]
[313343352,1707181845887,-342.36884967,0.0002187,2]
[313343471,1707183041177,-820.60094681,0.00021431,2]
[313343472,1707183041186,-21951.88365992,0.00021432,2]
[313343610,1707184232175,-597.9119538,0.00018645,2]
[313343650,1707184238151,-222.68899301,0.00018645,2]
[313343651,1707184238162,-159.5922067,0.00018646,2]
[313343652,1707184238172,-294.18276478,0.00019035,2]
[313343653,1707184238181,-588.67841462,0.00019134,2]
[313343654,1707184238206,-3216.97028517,0.00019134,2]
[313343655,1707184238267,-432.85647337,0.00019134,2]
[313343662,1707184241344,-14713.09171462,0.00019134,2]
[313343663,1707184241354,-24900.0,0.00019135,2]
[313343664,1707184241363,-174.3409435,0.00019135,2]
[313343665,1707184241372,-168.2052575,0.00019178,2]
[313343666,1707184241381,-7849.01500927,0.00019215,2]
[313343680,1707184246190,-459.0,0.00019215,2]
[313343698,1707184465325,248.8510473,0.00018256,2]
[313343699,1707184487640,579.6489527,0.0001829,2]
[313343709,1707184750076,271.648563,0.00017952,2]
[313343722,1707185174474,261.79361725,0.00018,2]
[313343723,1707185176560,454.16512687,0.00018,2]
[313343724,1707185183879,1804.43724042,0.00018,2]
[313343781,1707185432236,-454.16512687,0.00018009,2]
[313343784,1707185432247,-481.39378056,0.0001801,2]
[313343786,1707185432256,-5851.77964259,0.00018013,2]
[313343788,1707185432265,-3656.089592,0.00018014,2]
[313343790,1707185432275,-293.97440302,0.00018794,2]
[313343792,1707185432285,-24900.0,0.00018864,2]
[313343794,1707185432295,-820.60094681,0.00018894,2]
[313343796,1707185432304,-538.64416195,0.000189,2]
[313343797,1707185432314,-185.87159165,0.00019063,2]
[313343799,1707185432323,-243.98708073,0.00019064,2]
[313343801,1707185432333,-168.806383,0.00019178,2]
[313343803,1707185432342,-271.648563,0.00019278,2]
[313343805,1707185432351,-200.0,0.00019813,2]
[313343807,1707185432361,-180.10985127,0.00019818,2]
[313343809,1707185432370,-154.556604,0.00021096,2]
[313343812,1707185432379,-155.5700323,0.00021096,2]
[313343813,1707185432389,-203.6263634,0.00021096,2]
[313343815,1707185432398,-154.3618142,0.00021096,2]
[313343817,1707185432407,-199.8298339,0.00021096,2]
[313343820,1707185432418,-153.0,0.00021096,2]
[313343821,1707185432427,-153.0,0.00021096,2]
[313343823,1707185432436,-199.8298339,0.00021096,2]
[313343826,1707185432445,-199.8298339,0.00021096,2]
[313343827,1707185432455,-153.0,0.00021096,2]
[313343829,1707185432464,-153.0,0.00021096,2]
[313343830,1707185432473,-498.1191753,0.00021096,2]
[313343831,1707185432482,-199.8298339,0.00021096,2]
[313343832,1707185432490,-199.8298339,0.00021096,2]
[313343833,1707185432500,-153.0,0.00021156,2]
[313343835,1707185432509,-199.8298339,0.00021156,2]
[313343837,1707185432518,-153.0,0.00021156,2]
[313343839,1707185432527,-153.0,0.00021156,2]
[313343840,1707185432536,-199.8298339,0.00021156,2]
[313343842,1707185432545,-5371.57,0.00021421,3]
[313343843,1707185432554,-153.186415,0.00021421,2]
[313343845,1707185432563,-151.0,0.00021421,2]
[313343847,1707185432572,-151.0,0.00021421,2]
[313343849,1707185432581,-151.0,0.00021421,2]
[313343851,1707185432590,-151.0,0.00021422,2]
[313343852,1707185432599,-151.0,0.00021422,2]
[313343853,1707185432608,-185.182457,0.00021422,2]
[313343855,1707185432617,-154.12401,0.00021422,2]
[313343857,1707185432626,-188.753952,0.00021422,2]
[313343859,1707185432635,-6445.89,0.00021422,3]
[313343861,1707185432645,-155.75617284,0.0002143,2]
[313343863,1707185432655,-15190.75127515,0.00021431,2]
[313343865,1707185432664,-151.0,0.00021431,2]
[313343867,1707185432673,-151.0,0.00021431,2]
[313343869,1707185432682,-500.0,0.00021431,2]
[313343871,1707185432691,-500.0,0.00021431,2]
[313343873,1707185432701,-500.0,0.00021431,2]
[313343875,1707185432711,-500.0,0.00021431,2]
[313343877,1707185432720,-578.51315429,0.00021431,2]
[313343879,1707185432729,-500.0,0.00021431,2]
[313343881,1707185432739,-500.0,0.00021431,2]
[313343883,1707185432748,-500.0,0.00021431,2]
[313343885,1707185432757,-641.61817992,0.00021431,2]
[313343887,1707185432766,-547.3770772,0.00021431,2]
[313343889,1707185432775,-519.56580597,0.00021431,2]
[313343891,1707185432785,-151.0,0.00021431,2]
[313343893,1707185432794,-151.0,0.00021431,2]
[313343895,1707185432803,-11132.22725523,0.00021432,2]
[313343908,1707185432906,-18268.73244295,0.00021432,2]
[313343929,1707185438341,-3567.44869436,0.00021432,2]
[313343930,1707185438353,-437.90229,0.00021432,2]
[313343943,1707185441499,-7464.60457647,0.00021432,2]
[313343944,1707185441513,-3066.81404542,0.00021432,2]
[313343945,1707185441522,-1831.07268714,0.00021432,2]
[313343946,1707185441533,-151.0,0.00021432,2]
[313343947,1707185441545,-151.0,0.00021432,2]
[313343948,1707185441556,-293.5131311,0.00021499,2]
[313343949,1707185441567,-1009.0,0.000215,2]
[313343950,1707185441579,-313.3258578,0.00021582,2]
[313343951,1707185441590,-280.0,0.00021794,7]
[313343952,1707185441602,-16342.64072086,0.000218,2]
[313344122,1707185446327,-455.28,0.000218,2]
[313344123,1707185446384,-2068.34152941,0.000218,2]
[313344124,1707185446394,-151.0,0.00021856,2]
[313344125,1707185446405,-187.534653,0.00021856,2]
[313344126,1707185446416,-153.0,0.00021856,2]
[313344127,1707185446428,-156.6260754,0.00021856,2]
[313344128,1707185446439,-173.2387385,0.00021856,2]
[313344129,1707185446451,-306.4770519,0.00021856,2]
[313344130,1707185446461,-306.6807915,0.00021856,2]
[313344131,1707185446475,-154.2824162,0.00021856,2]
[313344132,1707185446488,-153.0,0.00021856,2]